[Event "EYCC 2017"]
[Site "Mamaia"]
[Date "2017.09.06"]
[Round "2"]
[White "Goltseva, Ekaterina"]
[Black "Ayan, Bengu Sena"]
[Result "1-0"]
[ECO "D10"]
[WhiteElo "2214"]
[BlackElo "1905"]
[Annotator "NA"]
[PlyCount "81"]
[EventDate "2017.??.??"]
[EventType "swiss"]
[EventCountry "ROU"]
[SourceTitle "playchess.com"]
[Source "ChessBase"]
[SourceQuality "1"]
[TimeControl "40/5400+30:1800+30"]

1. d4 {[%emt 0:00:00]} d5 {[%emt 0:00:05]} 2. c4 {[%emt 0:00:00]} c6 {[%emt 0:00:04]} 3. cxd5 {[%emt 0:00:00]} cxd5 {[%emt 0:00:05]} 4. Bf4 {[%emt 0:00:00]} Nf6 {[%emt 0:00:20]} 5. Nc3 {[%emt 0:00:00]} Nc6 {[%emt 0:00:09]} 6. e3 {[%emt 0:00:01]} a6 {[%emt 0:00:04]} 7. Be2 {[%emt 0:00:14]} e6 {[%emt 0:00:23]} 8. Rc1 {[%emt 0:00:10]} Be7 {[%emt 0:00:27]} 9. h3 {[%emt 0:00:32]} Bd7 {[%emt 0:03:28]} 10. Nf3 {[%emt 0:00:30]} O-O {[%emt 0:00:18]} 11. O-O {[%emt 0:00:22]} Qb6 {[%emt 0:02:46]} 12. Rb1 {[%emt 0:10:29]} Rac8 {[%emt 0:02:56]} 13. Ne5 {[%emt 0:02:20]} Rfd8 {[%emt 0:06:04]} 14. Bg5 {[%emt 0:05:32]} h6 {[%emt 0:08:55]} 15. Bh4 {[%emt 0:01:18]} Be8 {[%emt 0:17:30]} 16. f4 {[%emt 0:04:38]} Qc7 {[%emt 0:05:31]} 17. Rc1 {[%emt 0:07:46]} Ne4 {[%emt 0:06:43]} 18. Bxe7 {[%emt 0:21:12]} Qxe7 {[%emt 0:01:47]} 19. Bd3 {[%emt 0:05:32]} Nxe5 {[%emt 0:05:22]} 20. fxe5 {[%emt 0:03:54]} Qg5 {[%emt 0:01:19]} 21. Rf4 {[%emt 0:02:43]} f5 {[%emt 0:05:23]} 22. Bxe4 {[%emt 0:09:20]} dxe4 {[%emt 0:02:42]} 23. Qb3 {[%emt 0:02:09]} Bf7 {[%emt 0:06:39]} 24. Rcf1 {[%emt 0:01:40]} Rd7 {[%emt 0:01:55]} 25. Kh2 {[%emt 0:05:11]} Rf8 {[%emt 0:02:48]} 26. Na4 {[%emt 0:03:48]} Qe7 {[%emt 0:02:12]} 27. Nb6 {[%emt 0:01:37]} Rdd8 {[%emt 0:00:20]} 28. Nc4 {[%emt 0:01:31]} g5 {[%emt 0:07:58]} 29. R4f2 {[%emt 0:00:14]} b5 {[%emt 0:04:06]} 30. Nd6 {[%emt 0:01:49]} Rxd6 {[%emt 0:01:40]} 31. exd6 {[%emt 0:00:06]} Qxd6+ {[%emt 0:00:04]} 32. Kh1 {[%emt 0:02:50]} Qg3 {[%emt 0:00:44]} 33. d5 {[%emt 0:02:15]} Re8 {[%emt 0:00:35]} 34. Qc3 {[%emt 0:01:17]} b4 {[%emt 0:02:24]} 35. Qc6 {[%emt 0:02:12]} Qxe3 {[%emt 0:01:32]} 36. dxe6 {[%emt 0:00:12]} Rxe6 {[%emt 0:00:19]} 37. Qc8+ {[%emt 0:00:09]} Re8 {[%emt 0:00:38]} 38. Qxf5 {[%emt 0:00:18]} Rf8 {[%emt 0:01:09]} 39. Qe5 {[%emt 0:01:22]} Re8 {[%emt 0:00:35]} 40. Qf6 {[%emt 0:00:00]} Rf8 {[%emt 0:00:37]} 41. Qe7 {[%emt 0:02:39]} 1-0

[Event "EYCC 2017"]
[Site "Mamaia"]
[Date "2017.09.06"]
[Round "2"]
[White "Oglaza, Oskar"]
[Black "Anghel, Iulian-Mihai"]
[Result "1-0"]
[ECO "B12"]
[WhiteElo "2198"]
[BlackElo "1885"]
[Annotator "NA"]
[PlyCount "55"]
[EventDate "2017.??.??"]
[EventType "swiss"]
[EventCountry "ROU"]
[SourceTitle "playchess.com"]
[Source "ChessBase"]
[SourceQuality "1"]
[TimeControl "40/5400+30:1800+30"]

1. e4 {[%emt 0:00:00]} c6 {[%emt 0:00:06]} 2. d4 {[%emt 0:00:00]} d5 {[%emt 0:00:07]} 3. e5 {[%emt 0:00:08]} Bf5 {[%emt 0:00:06]} 4. Nc3 {[%emt 0:00:05]} e6 {[%emt 0:00:12]} 5. g4 {[%emt 0:00:10]} Bg6 {[%emt 0:00:05]} 6. Nge2 {[%emt 0:00:06]} c5 {[%emt 0:00:20]} 7. h4 {[%emt 0:00:29]} h5 {[%emt 0:00:18]} 8. Nf4 {[%emt 0:00:33]} Bh7 {[%emt 0:00:07]} 9. Nxh5 {[%emt 0:01:09]} Nc6 {[%emt 0:00:21]} 10. dxc5 {[%emt 0:04:04]} Bxc5 {[%emt 0:00:09]} 11. Bd3 {[%emt 0:24:11]} Bxd3 {[%emt 0:04:18]} 12. Qxd3 {[%emt 0:01:08]} Qc7 {[%emt 0:31:30]} 13. Nxg7+ {[%emt 0:07:57]} Kf8 {[%emt 0:00:11]} 14. Nh5 {[%emt 0:00:06]} Qxe5+ {[%emt 0:12:09]} 15. Kf1 {[%emt 0:05:11]} Nb4 {[%emt 0:16:05]} 16. Qb5 {[%emt 0:03:36]} Qc7 {[%emt 0:08:17]} 17. Bf4 {[%emt 0:00:28]} Qb6 {[%emt 0:03:17]} 18. Qe2 {[%emt 0:02:24]} Bd6 {[%emt 0:06:13]} 19. Rd1 {[%emt 0:06:52]} Bxf4 {[%emt 0:02:53]} 20. Nxf4 {[%emt 0:02:05]} Qd6 {[%emt 0:03:14]} 21. Nd3 {[%emt 0:11:48]} Nxd3 {[%emt 0:01:59]} 22. Rxd3 {[%emt 0:00:07]} Nf6 {[%emt 0:04:28]} 23. Rhh3 {[%emt 0:04:04]} Qb4 {[%emt 0:02:13]} 24. Qe5 {[%emt 0:01:12]} Rh6 {[%emt 0:02:00]} 25. g5 {[%emt 0:04:36]} Ng4 {[%emt 0:01:50]} 26. Qd4 {[%emt 0:00:19]} Qxd4 {[%emt 0:00:25]} 27. Rxd4 {[%emt 0:00:07]} Nxf2 {[%emt 0:00:31]} 28. Kxf2 {[%emt 0:00:09]} 1-0

[Event "EYCC 2017"]
[Site "Mamaia"]
[Date "2017.09.06"]
[Round "2"]
[White "Martinovici, Ilie"]
[Black "Parkhov, Yair"]
[Result "1/2-1/2"]
[ECO "E32"]
[WhiteElo "2197"]
[BlackElo "2391"]
[Annotator "NA"]
[PlyCount "38"]
[EventDate "2017.??.??"]
[EventType "swiss"]
[EventCountry "ROU"]
[SourceTitle "playchess.com"]
[Source "ChessBase"]
[SourceQuality "1"]
[TimeControl "40/5400+30:1800+30"]

1. d4 {[%emt 0:00:00]} Nf6 {[%emt 0:00:06]} 2. c4 {[%emt 0:00:00]} e6 {[%emt 0:00:04]} 3. Nc3 {[%emt 0:00:00]} Bb4 {[%emt 0:00:06]} 4. Qc2 {[%emt 0:00:00]} O-O {[%emt 0:00:06]} 5. a3 {[%emt 0:00:25]} Bxc3+ {[%emt 0:00:06]} 6. Qxc3 {[%emt 0:00:03]} d6 {[%emt 0:00:18]} 7. g3 {[%emt 0:00:15]} e5 {[%emt 0:00:47]} 8. Bg2 {[%emt 0:04:00]} Re8 {[%emt 0:05:59]} 9. dxe5 {[%emt 0:04:28]} dxe5 {[%emt 0:00:10]} 10. Nf3 {[%emt 0:00:28]} Nc6 {[%emt 0:11:12]} 11. Be3 {[%emt 0:08:00]} a5 {[%emt 0:08:00]} 12. b3 {[%emt 0:06:43]} Qe7 {[%emt 0:03:38]} 13. O-O Bf5 {[%emt 0:06:39]} 14. Rfd1 {[%emt 0:05:34]} Ng4 {[%emt 0:05:40]} 15. Nh4 {[%emt 0:07:52]} Bc8 {[%emt 0:14:25]} 16. Nf3 {[%emt 0:16:07]} Bf5 {[%emt 0:06:07]} 17. Nh4 {[%emt 0:00:05]} Bc8 {[%emt 0:00:07]} 18. Nf3 {[%emt 0:00:04]} h6 {[%emt 0:03:24]} 19. Bd2 {[%emt 0:08:56]} Bf5 {[%emt 0:04:22]} 1/2-1/2

[Event "EYCC 2017"]
[Site "Mamaia"]
[Date "2017.09.06"]
[Round "2"]
[White "Rozman, Monika"]
[Black "Szucs, Edina"]
[Result "1-0"]
[ECO "C55"]
[WhiteElo "2194"]
[BlackElo "2023"]
[Annotator "NA"]
[PlyCount "87"]
[EventDate "2017.??.??"]
[EventType "swiss"]
[EventCountry "ROU"]
[SourceTitle "playchess.com"]
[Source "ChessBase"]
[SourceQuality "1"]
[TimeControl "40/5400+30:1800+30"]

1. e4 {[%emt 0:00:00]} e5 {[%emt 0:00:11]} 2. Nf3 {[%emt 0:00:00]} Nc6 {[%emt 0:00:05]} 3. Bc4 {[%emt 0:00:00]} Nf6 {[%emt 0:00:06]} 4. d3 {[%emt 0:00:01]} Be7 {[%emt 0:00:07]} 5. O-O {[%emt 0:00:30]} d6 {[%emt 0:00:22]} 6. c3 {[%emt 0:01:44]} O-O {[%emt 0:01:15]} 7. Bb3 {[%emt 0:01:00]} Na5 {[%emt 0:00:33]} 8. Bc2 {[%emt 0:00:33]} c5 {[%emt 0:00:15]} 9. Nbd2 {[%emt 0:00:51]} Nc6 {[%emt 0:00:33]} 10. Re1 {[%emt 0:02:06]} Re8 {[%emt 0:00:38]} 11. a4 {[%emt 0:04:18]} Bf8 {[%emt 0:02:24]} 12. Nf1 {[%emt 0:04:41]} g6 {[%emt 0:01:57]} 13. Bg5 {[%emt 0:01:14]} h6 {[%emt 0:00:20]} 14. Bh4 {[%emt 0:03:26]} Bg7 {[%emt 0:01:22]} 15. Ne3 {[%emt 0:01:21]} g5 {[%emt 0:12:55]} 16. Bg3 {[%emt 0:00:48]} d5 {[%emt 0:01:03]} 17. exd5 {[%emt 0:04:11]} Nxd5 {[%emt 0:00:14]} 18. Nxd5 {[%emt 0:00:10]} Qxd5 {[%emt 0:00:09]} 19. d4 {[%emt 0:00:28]} cxd4 {[%emt 0:04:52]} 20. Nxd4 {[%emt 0:11:02]} Nxd4 {[%emt 0:01:53]} 21. cxd4 {[%emt 0:00:10]} e4 {[%emt 0:05:49]} 22. Bb3 {[%emt 0:04:02]} Qd8 {[%emt 0:07:21]} 23. Qh5 {[%emt 0:11:34]} Be6 {[%emt 0:05:07]} 24. d5 {[%emt 0:02:29]} Bf5 {[%emt 0:06:56]} 25. d6 {[%emt 0:09:18]} Qd7 {[%emt 0:00:53]} 26. Qe2 {[%emt 0:11:30]} Be6 {[%emt 0:15:30]} 27. Bxe6 {[%emt 0:02:19]} Qxe6 {[%emt 0:01:32]} 28. Rad1 {[%emt 0:04:14]} f5 {[%emt 0:01:02]} 29. h4 {[%emt 0:04:18]} Rad8 {[%emt 0:05:46]} 30. hxg5 {[%emt 0:06:31]} hxg5 {[%emt 0:00:09]} 31. Bh2 {[%emt 0:00:04]} f4 {[%emt 0:06:06]} 32. Qb5 {[%emt 0:00:24]} Qg4 {[%emt 0:03:37]} 33. f3 {[%emt 0:03:34]} Qh4 {[%emt 0:04:26]} 34. Qd5+ {[%emt 0:00:18]} Kh8 {[%emt 0:00:21]} 35. Rxe4 {[%emt 0:01:08]} g4 {[%emt 0:01:46]} 36. fxg4 {[%emt 0:01:34]} Rxe4 {[%emt 0:00:14]} 37. Qxe4 {[%emt 0:00:13]} Qxg4 {[%emt 0:00:15]} 38. Rd3 {[%emt 0:01:07]} Qg5 {[%emt 0:02:03]} 39. Bxf4 {[%emt 0:03:01]} Qc5+ {[%emt 0:01:03]} 40. Kh1 {[%emt 0:00:00]} b6 {[%emt 0:01:59]} 41. Rh3+ {[%emt 0:02:11]} Kg8 {[%emt 0:00:12]} 42. Qe6+ {[%emt 0:00:13]} Kf8 {[%emt 0:00:44]} 43. Rh8+ {[%emt 0:00:51]} Bxh8 {[%emt 0:00:34]} 44. Bh6+ {[%emt 0:00:05]} 1-0

[Event "EYCC 2017"]
[Site "Mamaia"]
[Date "2017.09.06"]
[Round "2"]
[White "Gorshtein, Ido"]
[Black "Pultinevicius, Paulius"]
[Result "0-1"]
[ECO "C77"]
[WhiteElo "2189"]
[BlackElo "2381"]
[Annotator "NA"]
[PlyCount "68"]
[EventDate "2017.??.??"]
[EventType "swiss"]
[EventCountry "ROU"]
[SourceTitle "playchess.com"]
[Source "ChessBase"]
[SourceQuality "1"]
[TimeControl "40/5400+30:1800+30"]

1. e4 {[%emt 0:00:00]} e5 {[%emt 0:00:05]} 2. Nf3 {[%emt 0:00:00]} Nc6 {[%emt 0:00:06]} 3. Bb5 {[%emt 0:00:00]} a6 {[%emt 0:00:13]} 4. Ba4 {[%emt 0:00:00]} Nf6 {[%emt 0:00:07]} 5. Qe2 {[%emt 0:00:00]} b5 {[%emt 0:07:15]} 6. Bb3 {[%emt 0:00:02]} Bc5 {[%emt 0:00:18]} 7. O-O {[%emt 0:02:18]} O-O {[%emt 0:03:44]} 8. d3 {[%emt 0:01:47]} Re8 {[%emt 0:04:51]} 9. c3 {[%emt 0:03:26]} h6 {[%emt 0:05:28]} 10. Nbd2 {[%emt 0:14:12]} Bb7 {[%emt 0:00:50]} 11. Kh1 {[%emt 0:02:14]} Bf8 {[%emt 0:10:13]} 12. Rd1 {[%emt 0:03:20]} d5 {[%emt 0:01:41]} 13. Nf1 {[%emt 0:01:26]} Na5 {[%emt 0:00:59]} 14. Bc2 {[%emt 0:00:23]} c5 {[%emt 0:00:01]} 15. Ng3 {[%emt 0:01:52]} Qc7 {[%emt 0:14:13]} 16. Nh4 {[%emt 0:06:03]} g6 {[%emt 0:02:59]} 17. Qf3 {[%emt 0:03:23]} Re6 {[%emt 0:09:03]} 18. Ngf5 {[%emt 0:07:48]} gxf5 {[%emt 0:09:46]} 19. Nxf5 {[%emt 0:00:02]} dxe4 {[%emt 0:02:21]} 20. Qg3+ {[%emt 0:02:02]} Kh7 {[%emt 0:01:28]} 21. Qh4 {[%emt 0:01:51]} Ng8 {[%emt 0:04:05]} 22. dxe4 {[%emt 0:01:37]} Rg6 {[%emt 0:03:08]} 23. Rd3 {[%emt 0:05:50]} Nc6 {[%emt 0:01:44]} 24. Rf3 {[%emt 0:04:21]} Rd8 {[%emt 0:05:37]} 25. g4 {[%emt 0:04:02]} Rd7 {[%emt 0:04:29]} 26. g5 {[%emt 0:01:12]} Nd8 {[%emt 0:01:26]} 27. Qh5 {[%emt 0:16:21]} Ne6 {[%emt 0:06:54]} 28. Nh4 {[%emt 0:01:01]} Nxg5 {[%emt 0:00:33]} 29. Rxf7+ {[%emt 0:00:40]} Rxf7 {[%emt 0:00:38]} 30. Qxg6+ {[%emt 0:00:04]} Kh8 {[%emt 0:00:03]} 31. Bxg5 {[%emt 0:00:37]} hxg5 {[%emt 0:00:14]} 32. Nf5 {[%emt 0:00:15]} Rf6 {[%emt 0:00:56]} 33. Qxg5 {[%emt 0:00:37]} Qh7 {[%emt 0:00:15]} 34. f3 {[%emt 0:01:59]} Rg6 {[%emt 0:00:47]} 0-1

[Event "EYCC 2017"]
[Site "Mamaia"]
[Date "2017.09.06"]
[Round "2"]
[White "Gueci, Tea"]
[Black "Avetisyan, Mariam"]
[Result "1/2-1/2"]
[ECO "C05"]
[WhiteElo "2181"]
[BlackElo "1976"]
[Annotator "NA"]
[PlyCount "77"]
[EventDate "2017.??.??"]
[EventType "swiss"]
[EventCountry "ROU"]
[SourceTitle "playchess.com"]
[Source "ChessBase"]
[SourceQuality "1"]
[TimeControl "40/5400+30:1800+30"]

1. e4 {[%emt 0:00:00]} e6 {[%emt 0:00:05]} 2. d4 {[%emt 0:00:00]} d5 {[%emt 0:00:09]} 3. Nd2 {[%emt 0:00:00]} Nf6 {[%emt 0:00:05]} 4. e5 {[%emt 0:00:00]} Nfd7 {[%emt 0:00:03]} 5. Ngf3 {[%emt 0:00:29]} c5 {[%emt 0:00:12]} 6. c3 {[%emt 0:00:04]} Nc6 {[%emt 0:00:04]} 7. Bd3 {[%emt 0:00:07]} Be7 {[%emt 0:00:05]} 8. O-O {[%emt 0:00:15]} a5 {[%emt 0:00:28]} 9. a4 {[%emt 0:00:04]} cxd4 {[%emt 0:00:16]} 10. cxd4 {[%emt 0:00:06]} Nb4 {[%emt 0:01:59]} 11. Be2 {[%emt 0:00:39]} O-O {[%emt 0:04:10]} 12. Nb1 {[%emt 0:00:13]} b6 {[%emt 0:14:55]} 13. Nc3 {[%emt 0:00:15]} Ba6 {[%emt 0:00:34]} 14. Nb5 {[%emt 0:02:30]} Rc8 {[%emt 0:04:24]} 15. Bd2 {[%emt 0:07:36]} Nb8 {[%emt 0:06:13]} 16. Bc3 {[%emt 0:12:22]} N8c6 {[%emt 0:01:12]} 17. Re1 {[%emt 0:01:06]} Qd7 {[%emt 0:02:15]} 18. Bf1 {[%emt 0:09:03]} Na7 {[%emt 0:14:44]} 19. Bxb4 {[%emt 0:19:50]} Bxb4 {[%emt 0:00:18]} 20. Nd6 {[%emt 0:00:05]} Bxf1 {[%emt 0:02:26]} 21. Nxc8 {[%emt 0:00:05]} Bxe1 {[%emt 0:00:03]} 22. Nxa7 {[%emt 0:01:42]} Ba6 {[%emt 0:02:55]} 23. Qxe1 {[%emt 0:02:20]} Qxa7 {[%emt 0:00:05]} 24. Rc1 {[%emt 0:01:52]} Qd7 {[%emt 0:04:15]} 25. b3 {[%emt 0:04:12]} Rc8 {[%emt 0:02:08]} 26. Nd2 {[%emt 0:03:37]} Bd3 {[%emt 0:03:34]} 27. h3 {[%emt 0:19:02]} h6 {[%emt 0:00:09]} 28. Qd1 {[%emt 0:02:20]} Rc7 {[%emt 0:09:44]} 29. Nf1 {[%emt 0:01:22]} Bxf1 {[%emt 0:10:37]} 30. Kxf1 {[%emt 0:00:47]} Qc8 {[%emt 0:00:46]} 31. Rxc7 {[%emt 0:01:17]} Qxc7 {[%emt 0:00:27]} 32. Qd2 {[%emt 0:00:33]} Qe7 {[%emt 0:09:11]} 33. Ke2 {[%emt 0:01:11]} Qa3 {[%emt 0:01:01]} 34. Qc3 {[%emt 0:03:42]} Qa2+ {[%emt 0:00:36]} 35. Ke3 {[%emt 0:00:54]} Qb1 {[%emt 0:01:41]} 36. Qd3 {[%emt 0:00:06]} Qc1+ {[%emt 0:02:05]} 37. Qd2 {[%emt 0:00:40]} Qb1 {[%emt 0:00:25]} 38. Qd3 {[%emt 0:00:15]} Qc1+ {[%emt 0:02:09]} 39. Qd2 {[%emt 0:00:10]} 1/2-1/2

[Event "EYCC 2017"]
[Site "Mamaia"]
[Date "2017.09.06"]
[Round "2"]
[White "Volovich, Vasily"]
[Black "Tomasi, Albert"]
[Result "1/2-1/2"]
[ECO "B22"]
[WhiteElo "2166"]
[BlackElo "2343"]
[Annotator "NA"]
[PlyCount "86"]
[EventDate "2017.??.??"]
[EventType "swiss"]
[EventCountry "ROU"]
[SourceTitle "playchess.com"]
[Source "ChessBase"]
[SourceQuality "1"]
[TimeControl "40/5400+30:1800+30"]

1. e4 {[%emt 0:00:04]} c5 {[%emt 0:00:15]} 2. c3 {[%emt 0:00:30]} e5 {[%emt 0:00:38]} 3. Nf3 {[%emt 0:01:38]} Nc6 {[%emt 0:00:10]} 4. Bc4 {[%emt 0:02:27]} Nf6 {[%emt 0:18:10]} 5. d3 {[%emt 0:13:57]} Be7 {[%emt 0:00:39]} 6. O-O {[%emt 0:02:24]} O-O {[%emt 0:00:08]} 7. Bg5 {[%emt 0:04:10]} h6 {[%emt 0:03:12]} 8. Bxf6 {[%emt 0:01:38]} Bxf6 {[%emt 0:00:13]} 9. Nbd2 {[%emt 0:03:27]} d6 {[%emt 0:04:46]} 10. Re1 {[%emt 0:02:44]} g6 {[%emt 0:08:28]} 11. Nf1 {[%emt 0:05:39]} Bg7 {[%emt 0:00:12]} 12. Ne3 {[%emt 0:04:20]} Kh7 {[%emt 0:00:35]} 13. h4 {[%emt 0:04:00]} Ne7 {[%emt 0:19:49]} 14. h5 {[%emt 0:16:02]} g5 {[%emt 0:10:18]} 15. g4 {[%emt 0:02:09]} Be6 {[%emt 0:04:48]} 16. Nd2 {[%emt 0:04:02]} Qd7 {[%emt 0:01:24]} 17. Ndf1 {[%emt 0:03:02]} b5 {[%emt 0:14:51]} 18. Bb3 {[%emt 0:05:13]} a5 {[%emt 0:00:06]} 19. a4 {[%emt 0:05:33]} Rfb8 {[%emt 0:00:36]} 20. Ng3 {[%emt 0:02:04]} b4 {[%emt 0:01:47]} 21. Bd5 {[%emt 0:01:25]} Ra6 {[%emt 0:03:17]} 22. c4 {[%emt 0:03:20]} b3 {[%emt 0:02:11]} 23. Ngf5 {[%emt 0:01:22]} Rab6 {[%emt 0:00:30]} 24. Ra3 {[%emt 0:02:01]} Rb4 {[%emt 0:00:43]} 25. Qf3 {[%emt 0:00:56]} Nc8 {[%emt 0:02:58]} 26. Nd1 {[%emt 0:03:50]} Nb6 {[%emt 0:01:26]} 27. Nc3 {[%emt 0:00:36]} Bf8 {[%emt 0:01:12]} 28. Rea1 {[%emt 0:00:34]} Be7 {[%emt 0:00:35]} 29. Ne3 {[%emt 0:01:05]} Rf8 {[%emt 0:00:26]} 30. Nb5 {[%emt 0:00:58]} Qc8 {[%emt 0:00:22]} 31. Na7 {[%emt 0:00:55]} Qd7 {[%emt 0:00:39]} 32. Nc6 {[%emt 0:00:49]} Qc7 {[%emt 0:00:34]} 33. Nxb4 {[%emt 0:00:48]} cxb4 {[%emt 0:00:09]} 34. Rxb3 {[%emt 0:00:06]} Nd7 {[%emt 0:00:03]} 35. Qd1 {[%emt 0:00:44]} Nc5 {[%emt 0:00:07]} 36. Kg2 {[%emt 0:01:21]} Bd7 {[%emt 0:01:05]} 37. d4 {[%emt 0:01:16]} exd4 {[%emt 0:00:52]} 38. Nf5 {[%emt 0:00:08]} Nxb3 {[%emt 0:00:21]} 39. Qxb3 {[%emt 0:00:19]} Bf6 {[%emt 0:00:07]} 40. Qf3 {[%emt 0:00:00]} Bxf5 {[%emt 0:01:12]} 41. Qxf5+ {[%emt 0:06:28]} Kg7 {[%emt 0:00:06]} 42. b3 {[%emt 0:04:00]} Be5 {[%emt 0:01:48]} 43. Qf3 {[%emt 0:01:27]} Qe7 {[%emt 0:06:46]} 1/2-1/2

[Event "EYCC 2017"]
[Site "Mamaia"]
[Date "2017.09.06"]
[Round "2"]
[White "Beydullayeva, Govhar"]
[Black "Vidruk, Mariia"]
[Result "1-0"]
[ECO "E15"]
[WhiteElo "2164"]
[BlackElo "1848"]
[Annotator "NA"]
[PlyCount "77"]
[EventDate "2017.??.??"]
[EventType "swiss"]
[EventCountry "ROU"]
[SourceTitle "playchess.com"]
[Source "ChessBase"]
[SourceQuality "1"]
[TimeControl "40/5400+30:1800+30"]

1. d4 {[%emt 0:00:00]} Nf6 {[%emt 0:00:16]} 2. c4 {[%emt 0:00:00]} e6 {[%emt 0:00:11]} 3. Nf3 {[%emt 0:00:00]} b6 {[%emt 0:00:17]} 4. g3 {[%emt 0:00:11]} Ba6 {[%emt 0:00:46]} 5. b3 {[%emt 0:00:17]} Bb4+ {[%emt 0:01:34]} 6. Bd2 {[%emt 0:00:12]} Be7 {[%emt 0:00:31]} 7. Bg2 $11 {[%emt 0:00:40] LiveBook: 3391 Games} d5 {[%emt 0:00:26]} 8. Ne5 {[%emt 0:11:48]} Ne4 {[%emt 0:05:58]} 9. Qc2 {[%emt 0:19:29]} Bb7 {[%emt 0:00:57]} 10. cxd5 {[%emt 0:03:31]} exd5 {[%emt 0:00:19]} 11. O-O {[%emt 0:00:35]} O-O {[%emt 0:01:16]} 12. Bf4 {[%emt 0:01:28]} Bd6 {[%emt 0:05:42]} 13. Nc3 {[%emt 0:05:05]} Nxc3 {[%emt 0:02:13]} 14. Qxc3 {[%emt 0:00:03]} Re8 {[%emt 0:01:42]} 15. Rfe1 {[%emt 0:06:35]} Qe7 {[%emt 0:07:58]} 16. Nd3 {[%emt 0:01:47]} Nd7 {[%emt 0:01:11]} 17. b4 {[%emt 0:01:55]} Rac8 {[%emt 0:05:30]} 18. Qb3 {[%emt 0:02:36]} Bxf4 {[%emt 0:05:11]} 19. Nxf4 {[%emt 0:00:09]} Nf6 {[%emt 0:01:04]} 20. b5 {[%emt 0:02:17]} Red8 {[%emt 0:05:22]} 21. Bh3 {[%emt 0:00:44]} Ra8 {[%emt 0:00:59]} 22. Qc2 {[%emt 0:08:22]} a6 {[%emt 0:07:06]} 23. a4 {[%emt 0:01:37]} Rd6 {[%emt 0:03:04]} 24. Rec1 {[%emt 0:02:55]} c6 {[%emt 0:01:03]} 25. bxc6 {[%emt 0:01:14]} Rxc6 {[%emt 0:01:04]} 26. Qb2 {[%emt 0:02:34]} Rb8 {[%emt 0:02:02]} 27. Nd3 {[%emt 0:01:55]} Ne4 {[%emt 0:03:10]} 28. Rxc6 {[%emt 0:04:29]} Bxc6 {[%emt 0:00:25]} 29. Ne5 {[%emt 0:00:22]} Qf6 {[%emt 0:01:45]} 30. f3 {[%emt 0:02:44]} Ng5 {[%emt 0:00:51]} 31. Bd7 {[%emt 0:03:00]} Ba8 {[%emt 0:02:01]} 32. Qb4 {[%emt 0:05:21]} a5 {[%emt 0:04:45]} 33. Qc3 {[%emt 0:01:28]} Ne6 {[%emt 0:03:12]} 34. Rc1 {[%emt 0:03:24]} Rd8 {[%emt 0:02:04]} 35. Bxe6 {[%emt 0:02:19]} Qxe6 {[%emt 0:00:51]} 36. Qc7 {[%emt 0:00:32]} Re8 {[%emt 0:01:52]} 37. Rb1 {[%emt 0:01:38]} Qh6 {[%emt 0:01:15]} 38. Qxf7+ {[%emt 0:00:10]} Kh8 {[%emt 0:00:19]} 39. Qxe8# {[%emt 0:00:05]} 1-0

[Event "EYCC 2017"]
[Site "Mamaia"]
[Date "2017.09.06"]
[Round "2"]
[White "Korchagina, Alena"]
[Black "Jakab, Kincso"]
[Result "1-0"]
[ECO "D30"]
[WhiteElo "2158"]
[BlackElo "1944"]
[Annotator "NA"]
[PlyCount "92"]
[EventDate "2017.??.??"]
[EventType "swiss"]
[EventCountry "ROU"]
[SourceTitle "playchess.com"]
[Source "ChessBase"]
[SourceQuality "1"]
[TimeControl "40/5400+30:1800+30"]

1. d4 {[%emt 0:00:00]} d5 {[%emt 0:00:09]} 2. c4 {[%emt 0:00:00]} e6 {[%emt 0:00:06]} 3. cxd5 {[%emt 0:00:01]} exd5 {[%emt 0:00:08]} 4. Nc3 {[%emt 0:00:16]} c6 {[%emt 0:00:51]} 5. Qc2 {[%emt 0:01:22]} Bd6 {[%emt 0:01:05]} 6. Nf3 {[%emt 0:01:38]} Ne7 {[%emt 0:04:08]} 7. Bg5 {[%emt 0:02:44]} Bf5 {[%emt 0:06:42]} 8. Qxf5 {[%emt 0:12:09]} Nxf5 {[%emt 0:00:40]} 9. Bxd8 {[%emt 0:00:05]} Kxd8 {[%emt 0:00:22]} 10. e3 {[%emt 0:00:17]} f6 {[%emt 0:03:29]} 11. Bd3 {[%emt 0:02:16]} Ne7 {[%emt 0:01:16]} 12. h4 {[%emt 0:04:54]} h5 {[%emt 0:08:09]} 13. g3 {[%emt 0:04:26]} a5 {[%emt 0:02:19]} 14. Ne2 {[%emt 0:03:31]} Na6 {[%emt 0:03:08]} 15. Nf4 {[%emt 0:02:52]} Nc7 {[%emt 0:00:54]} 16. Nd2 {[%emt 0:01:16]} Kd7 {[%emt 0:08:17]} 17. Be2 {[%emt 0:09:07]} g6 {[%emt 0:06:46]} 18. Bd3 {[%emt 0:02:07]} Rag8 {[%emt 0:02:38]} 19. Ke2 {[%emt 0:05:01]} Ne6 {[%emt 0:04:25]} 20. Rae1 {[%emt 0:11:11]} Bb4 {[%emt 0:16:32]} 21. a3 {[%emt 0:03:50]} Bxd2 {[%emt 0:04:09]} 22. Kxd2 {[%emt 0:00:08]} f5 {[%emt 0:03:23]} 23. Be2 {[%emt 0:06:27]} Nd8 {[%emt 0:04:33]} 24. b4 {[%emt 0:04:46]} axb4 {[%emt 0:01:59]} 25. axb4 {[%emt 0:01:01]} Nf7 {[%emt 0:01:17]} 26. Ra1 {[%emt 0:02:16]} Ra8 {[%emt 0:01:05]} 27. Nd3 {[%emt 0:00:48]} Nd6 {[%emt 0:02:00]} 28. Ne5+ {[%emt 0:01:33]} Ke6 {[%emt 0:00:57]} 29. f3 {[%emt 0:01:02]} b5 {[%emt 0:02:23]} 30. Rhc1 {[%emt 0:05:41]} Nc4+ {[%emt 0:00:56]} 31. Nxc4 {[%emt 0:03:31]} bxc4 {[%emt 0:01:59]} 32. Kc3 {[%emt 0:03:44]} Rhg8 {[%emt 0:01:54]} 33. Ra5 {[%emt 0:05:34]} Rxa5 {[%emt 0:02:19]} 34. bxa5 {[%emt 0:00:00]} Ra8 {[%emt 0:00:16]} 35. Ra1 {[%emt 0:00:12]} Ra6 {[%emt 0:00:19]} 36. Kb4 {[%emt 0:01:31]} Kd6 {[%emt 0:00:26]} 37. Rb1 {[%emt 0:00:28]} Ng8 {[%emt 0:02:29]} 38. e4 {[%emt 0:00:32]} fxe4 {[%emt 0:02:01]} 39. fxe4 {[%emt 0:00:00]} Ra8 {[%emt 0:00:44]} 40. e5+ {[%emt 0:00:00]} Ke6 {[%emt 0:01:50]} 41. Ka4 {[%emt 0:04:38]} Ne7 {[%emt 0:03:02]} 42. g4 {[%emt 0:07:04]} Ra7 {[%emt 0:12:51]} 43. Rf1 {[%emt 0:07:31]} Ng8 {[%emt 0:01:16]} 44. Rf8 {[%emt 0:03:14]} Ne7 {[%emt 0:05:32]} 45. gxh5 {[%emt 0:02:00]} gxh5 {[%emt 0:00:16]} 46. Bxh5 {[%emt 0:00:29]} Ra8 1-0